fUST/lending_fUST_20260228
["ID","MTS","AMOUNT","RATE_DAILY","PERIOD"]
[406841351,1772223040714,-864.0,0.00014991,2]
[406841352,1772223040724,-1500.0,0.00015,2]
[406841353,1772223040733,-1024.91942717,0.00015,2]
[406841354,1772223040743,-727.63843642,0.00015,2]
[406841355,1772223040752,-314.76157862,0.00015054,2]
[406841356,1772223040763,-150.0,0.000153,2]
[406841357,1772223040775,-816.79111198,0.00015342,2]
[406841358,1772223040785,-267.33341425,0.00015342,2]
[406841359,1772223040793,-195.33133116,0.00015342,2]
[406841360,1772223040803,-1892.098658,0.00015484,2]
[406841361,1772223040812,-1036.278201,0.00015523,2]
[406841362,1772223040822,-204.76398234,0.00015597,2]
[406841363,1772223040831,-2000.0,0.000156,2]
[406841364,1772223040842,-2000.0,0.000157,2]
[406841365,1772223040853,-161.10576747,0.00015701,2]
[406841366,1772223040862,-823.0,0.00015761,2]
[406841367,1772223040872,-184.25373534,0.00015795,2]
[406841368,1772223040881,-813.76001386,0.000158,2]
[406841369,1772223040890,-2834.0,0.00015853,2]
[406841370,1772223040899,-150.0,0.000159,2]
[406841371,1772223040908,-226.01929045,0.00016,2]
[406841372,1772223040918,-625.18,0.00016012,2]
[406841373,1772223040927,-250.0,0.00016088,2]
[406841374,1772223040938,-201.93286099,0.00016088,2]
[406841375,1772223040947,-250.0,0.00016088,2]
[406841376,1772223040956,-209.40437684,0.00016088,2]
[406841377,1772223040965,-217.15233878,0.00016088,2]
[406841378,1772223040974,-250.0,0.00016088,2]
[406841379,1772223040983,-225.18697532,0.00016088,2]
[406841380,1772223040992,-250.0,0.00016088,2]
[406841381,1772223041002,-233.51889341,0.00016088,2]
[406841382,1772223041011,-242.15909246,0.00016088,2]
[406841383,1772223041020,-251.11897888,0.00016088,2]
[406841384,1772223041030,-260.4103811,0.00016088,2]
[406841385,1772223041040,-668.65185757,0.00016088,2]
[406841386,1772223041050,-270.0455652,0.00016088,2]
[406841387,1772223041059,-280.03725112,0.00016088,2]
[406841388,1772223041069,-290.39862941,0.00016088,2]
[406841389,1772223041078,-2674.60743027,0.00016088,2]
[406841390,1772223041088,-301.1433787,0.00016088,2]
[406841391,1772223041098,-500.0,0.00016088,2]
[406841392,1772223041107,-500.0,0.00016088,2]
[406841393,1772223041116,-204.24076977,0.00016088,2]
[406841394,1772223041126,-500.0,0.00016088,2]
[406841395,1772223041141,-500.0,0.00016088,2]
[406841396,1772223041151,-500.0,0.00016088,2]
[406841397,1772223041160,-424.77367323,0.000161,5]
[406841398,1772223041169,-1036.278201,0.00016104,2]
[406841399,1772223041178,-243.5,0.00016147,2]
[406841400,1772223041188,-200.0,0.000164,2]
[406841401,1772223041197,-500.0,0.00016474,2]
[406841402,1772223041206,-1000.0,0.0001649,2]
[406841403,1772223041215,-2268.20620784,0.00016536,2]
[406841404,1772223041224,-171.34,0.00016634,2]
[406841405,1772223041233,-2773.56790519,0.00016636,2]
[406841406,1772223041243,-1036.278201,0.00016684,2]
[406841407,1772223041253,-625.18,0.00016785,2]
[406841408,1772223041262,-500.0,0.00016805,2]
[406841409,1772223041272,-504.22557757,0.00016894,2]
[406841410,1772223041281,-356.42119932,0.00017054,2]
[406841411,1772223041291,-409.67723209,0.00017099,2]
[406841412,1772223041323,-215.50276791,0.00017099,2]
[406841413,1772223041333,-625.18,0.00017099,2]
[406841414,1772223041341,-13447.20480856,0.000171,2]
[406841415,1772223041353,-253.51378645,0.000171,2]
[406841416,1772223042366,-328.41476384,0.00011969,2]
[406841417,1772223042375,-500.0,0.00011969,2]
[406841418,1772223042385,-380.74727259,0.00011969,2]
[406841419,1772223042396,-119.25272741,0.00011969,2]
[406841420,1772223042404,-500.0,0.00011969,2]
[406841421,1772223042413,-500.0,0.00011969,2]
[406841422,1772223042422,-500.0,0.00011969,2]
[406841423,1772223042431,-500.0,0.00011969,2]
[406841424,1772223042440,-500.0,0.00011969,2]
[406841425,1772223042449,-500.0,0.00011969,2]
[406841426,1772223042458,-500.0,0.00011969,2]
[406841427,1772223042467,-500.0,0.00011969,2]
[406841428,1772223042477,-500.0,0.00011969,2]
[406841429,1772223042486,-500.0,0.00011969,2]
[406841430,1772223042495,-500.0,0.00011969,2]
[406841431,1772223042504,-500.0,0.00011969,2]
[406841432,1772223042513,-500.0,0.00011969,2]
[406841433,1772223042522,-500.0,0.00011969,2]
[406841434,1772223042531,-500.0,0.00011969,2]
[406841435,1772223042540,-433.099129,0.00011969,2]
[406841436,1772223042550,-571.47005801,0.00011969,2]
[406841437,1772223042559,-500.0,0.00011969,2]
[406841438,1772223042568,-500.0,0.00011969,2]
[406841439,1772223042577,-500.0,0.00011969,2]
[406841440,1772223042586,-500.0,0.00011969,2]
[406841441,1772223042596,-450.0,0.00011969,2]
[406841442,1772223042605,-500.0,0.00011969,2]
[406841443,1772223042614,-500.0,0.00011969,2]
[406841444,1772223042622,-500.0,0.00011969,2]
[406841445,1772223042631,-500.0,0.00011969,2]
[406841446,1772223042640,-500.0,0.00011969,2]
[406841448,1772223042650,-500.0,0.00011969,2]
[406841450,1772223042659,-500.0,0.00011969,2]
[406841452,1772223042668,-500.0,0.00011969,2]
[406841454,1772223042677,-500.0,0.00011969,2]
[406841455,1772223042686,-313.4749,0.00011969,2]
[406841456,1772223042694,-500.0,0.00011969,2]
[406841457,1772223042703,-500.0,0.00011969,2]
[406841458,1772223042715,-500.0,0.00011969,2]
[406841459,1772223042723,-500.0,0.00011969,2]
[406841460,1772223042733,-500.0,0.00011969,2]
[406841461,1772223042742,-394.32024162,0.00011969,2]
[406841463,1772223042754,-105.67975838,0.00011969,2]
[406841465,1772223042763,-500.0,0.00011969,2]
[406841466,1772223042776,-456.01177431,0.00011969,2]
[406841471,1772223043284,-43.98822569,0.00011969,2]
[406841472,1772223043303,-201.93286098,0.00016088,2]
[406841473,1772223043318,-173.01748951,0.00016438,2]
[406841483,1772223046416,-250.0,0.00016088,2]
[406841484,1772223046426,-326.98251049,0.00016438,2]
[406841485,1772223046436,-12256.39733993,0.000171,2]
[406841486,1772223046444,-19575.6,0.000171,2]
[406841487,1772223046454,-184.25373534,0.00017204,2]
[406841488,1772223046463,-1152.0,0.00017304,2]
[406841489,1772223046471,-2309.05885424,0.00017323,2]
[406841490,1772223046480,-1292.13799505,0.00017376,2]
[406841491,1772223046490,-282.21264875,0.0001764,2]
[406841492,1772223046499,-168.0,0.00017668,2]
[406841493,1772223046509,-154.42801892,0.00017808,2]
[406841494,1772223046518,-150.0,0.00017808,2]
[406841495,1772223046527,-18447.93673346,0.0001782,2]
[406841496,1772223046536,-3412.17853319,0.0001782,2]
[406841497,1772223046545,-158.57546051,0.00017834,2]
[406841498,1772223046554,-625.18,0.00017899,2]
[406841499,1772223046563,-11314.35341064,0.000179,2]
[406841500,1772223046573,-1516.75685825,0.00017989,3]
[406841501,1772223046582,-625.18,0.00017999,2]
[406841502,1772223046591,-625.18,0.00017999,2]
[406841503,1772223046600,-625.18,0.00017999,2]
[406841504,1772223046609,-625.18,0.00017999,2]
[406841505,1772223046618,-625.18,0.00017999,2]
[406841506,1772223046627,-625.18,0.00017999,2]
[406841507,1772223046637,-625.18,0.00017999,2]
[406841508,1772223046647,-625.18,0.00017999,2]
[406841509,1772223046657,-625.18,0.00017999,2]
[406841510,1772223046667,-625.18,0.00017999,2]
[406841511,1772223046676,-625.39,0.00017999,2]
[406841512,1772223046687,-388.84,0.00018,2]
[406841513,1772223046697,-51279.02808292,0.00018,2]
[406841514,1772223046735,-7643.14945879,0.00018,2]
[406841515,1772223046747,-12910.15621236,0.00018,2]
[406841516,1772223046762,-1639.57847832,0.00018,2]
[406841586,1772224006162,-298.42025008,0.00011415,2]
[406841593,1772224204839,155.65,9.5e-05,2]
[406841594,1772224205832,155.65,9.5e-05,2]
[406841595,1772224206457,155.65,9.5e-05,2]
[406841596,1772224206903,155.65,9.5e-05,2]
[406841597,1772224207492,155.65,9.5e-05,2]
[406841598,1772224208072,155.65,9.5e-05,2]
[406841599,1772224208687,155.65,9.5e-05,2]
[406841600,1772224209267,155.65,9.5e-05,2]
[406841601,1772224211802,155.65,9.501e-05,2]
[406841707,1772224238409,-582.0,0.0001153,2]
[406841708,1772224238419,-207.92779576,0.0001153,2]
[406841709,1772224238430,-200.0,0.00012205,2]
[406841710,1772224238440,-300.0,0.00012207,2]
[406841711,1772224238449,-300.0,0.00012207,2]
[406841712,1772224238459,-300.0,0.00012207,2]
[406841713,1772224238468,-300.0,0.00012207,2]
[406841714,1772224238478,-300.0,0.00012207,2]
[406841715,1772224238487,-300.0,0.00012207,2]
[406841716,1772224238497,-300.0,0.00012207,2]
[406841717,1772224238506,-300.0,0.00012207,2]
[406841718,1772224238516,-300.0,0.00012207,2]
[406841719,1772224238526,-300.0,0.00012207,2]
[406841720,1772224238536,-300.0,0.00012207,2]
[406841721,1772224238546,-300.0,0.00012207,2]
[406841722,1772224238555,-300.0,0.00012207,2]
[406841723,1772224238565,-300.0,0.00012207,2]
[406841724,1772224238575,-300.0,0.00012207,2]
[406841725,1772224238584,-600.0,0.00012207,2]
[406841726,1772224238593,-217.51293862,0.00013273,2]
[406841727,1772224238603,-720.0,0.00013428,2]
[406841728,1772224238613,-245.354799,0.0001353,2]
[406841729,1772224238622,-1095.53409594,0.00013698,2]
[406841730,1772224238632,-172.84855229,0.00013699,2]
[406841731,1772224238641,-500.0,0.00013699,2]
[406841732,1772224238651,-500.0,0.00013699,2]
[406841733,1772224238660,-150.0,0.000137,2]
[406841734,1772224238670,-150.0,0.000142,2]
[406841735,1772224238679,-1000.0,0.00014247,2]
[406841736,1772224238689,-505.51236445,0.00014247,2]
[406841737,1772224238699,-250.50481628,0.00014379,2]
[406841738,1772224238708,-864.0,0.00014771,2]
[406841739,1772224238718,-150.0,0.000148,2]
[406841740,1772224238727,-744.82189483,0.000149,2]
[406841741,1772224238738,-150.0,0.000153,2]
[406841742,1772224238748,-282.78180223,0.0001553,2]
[406841743,1772224238757,-217.59510941,0.000158,2]
[406841744,1772224238766,-359.19895871,0.00016013,2]
[406841745,1772224238776,-201.93286099,0.00016013,2]
[406841746,1772224238786,-209.40437684,0.00016013,2]
[406841747,1772224238796,-217.15233878,0.00016013,2]
[406841748,1772224238805,-225.18697532,0.00016013,2]
[406841749,1772224238815,-233.51889341,0.00016013,2]
[406841750,1772224238825,-242.15909246,0.00016013,2]
[406841751,1772224238834,-251.11897888,0.00016013,2]
[406841752,1772224238843,-163.18310065,0.00016013,2]
[406841753,1772224238853,-1000.0,0.00016248,2]
[406841754,1772224238863,-217.59510941,0.00016626,9]
[406841755,1772224238872,-767.06783758,0.00017133,2]
[406841756,1772224238882,-217.59510941,0.00017452,17]
[406841757,1772224238891,-320.20880547,0.0001753,2]
[406841758,1772224238901,-3034.8174471,0.00017539,2]
[406841759,1772224238911,-188.14176584,0.0001764,2]
[406841760,1772224238921,-165.40293696,0.00017716,2]
[406841761,1772224238930,-3870.83363088,0.00017716,2]
[406841762,1772224238940,-171.341,0.00017807,2]
[406841763,1772224238949,-150.0,0.00017808,2]
[406841764,1772224238959,-23104.9023732,0.0001782,2]
[406841765,1772224238969,-1000.0,0.00017873,2]
[406841766,1772224238982,-244.0,0.00017873,2]
[406841767,1772224238991,-216.60819122,0.00017899,2]
[406841768,1772224239001,-10182.91806954,0.000179,2]
[406841769,1772224239011,-38947.27,0.0001799,2]
[406841770,1772224239020,-29945.28160713,0.00018,2]
[406841771,1772224239030,-1066.9866482,0.00018,2]
[406841772,1772224239043,-1447.62442233,0.00018,2]
[406841773,1772224239054,-5619.38968362,0.00018,2]
[406842039,1772224243514,-3676.47009293,0.00018,2]
[406842042,1772224243525,-16296.72021869,0.00018,2]
[406842325,1772224246329,-2930.20215451,0.00018,2]
[406845748,1772224713472,152.0,0.000158,5]
[406845805,1772225432728,-361.63977585,0.00013273,2]
[406845806,1772225432740,-138.36022415,0.00013273,2]
[406845807,1772225432749,-186.80233171,0.00013273,2]
[406845808,1772225432758,-608.0,0.00013273,2]
[406845809,1772225432767,-30.01620005,0.00014096,2]
[406845840,1772225438435,-169.98379995,0.00014096,2]
[406845842,1772225438444,-220.42675142,0.00015273,2]
[406845844,1772225438454,-254.05117113,0.00017273,2]
[406845846,1772225438464,-188.14176584,0.0001764,2]
[406845848,1772225438477,-337.81664431,0.00017647,2]
[406845851,1772225438492,-349.39953197,0.00017647,2]
[406846082,1772225440831,-57.60571855,0.00017647,2]
[406846084,1772225440841,-181.3010005,0.00017711,2]
[406846086,1772225440850,-87.01932765,0.00017711,2]
[406846373,1772225443592,-741.23463905,0.00017711,2]
[406846375,1772225443601,-150.0,0.00017808,2]
[406846377,1772225443611,-222.91573406,0.00017898,2]
[406846487,1772225446559,-1863.03158687,0.00017898,2]
[406846488,1772225446570,-1356.71935591,0.00017898,2]
[406846489,1772225446580,-300.0,0.00017899,2]
[406846490,1772225446589,-4519.21,0.000179,2]
[406846491,1772225446598,-171.341,0.000179,2]
[406846492,1772225446608,-4198.83236652,0.000179,2]
[406846493,1772225446831,-1317.15074566,0.000179,2]
[406846503,1772226043611,-500.0,0.00013273,2]
[406846504,1772226043640,-500.0,0.00013273,2]
[406846505,1772226043669,-608.0,0.00013273,2]
[406846507,1772226060147,-200.0,0.00013643,2]
[406846508,1772226060172,-300.0,0.00013673,2]
[406846509,1772226060200,-500.0,0.00013699,2]
[406846510,1772226060231,-1000.0,0.00013821,2]
[406846511,1772226060260,-1000.0,0.00013821,2]
[406846512,1772226060291,-728.62903211,0.00014175,2]
[406846513,1772226060321,-442.83840841,0.00014175,2]
[406846514,1772226060346,-200.0,0.00014247,2]
[406846515,1772226060365,-300.0,0.00014247,2]
[406846516,1772226060376,-500.0,0.00014247,2]
[406846517,1772226060388,-816.92834661,0.00014368,2]
[406846518,1772226060398,-183.07165339,0.00014368,2]
[406846519,1772226060413,-816.92834661,0.00014368,2]
[406846520,1772226060423,-183.07165339,0.00014795,2]
[406846521,1772226060446,-728.62903211,0.00014795,2]
[406846522,1772226060471,-291.18824611,0.00014795,2]
[406846523,1772226060480,-151.6501623,0.00014933,2]
[406846524,1772226060508,-593.17173253,0.00014933,2]
[406846525,1772226060518,-261.13594204,0.00014964,2]
[406846528,1772226089462,-300.0,0.00014367,2]
[406846529,1772226089489,-223.03185896,0.00014964,2]
[406846530,1772226089519,-204.82053742,0.00015373,2]
[406846531,1772226089539,-300.0,0.00015557,2]
[406846532,1772226089554,-223.03185896,0.00015557,2]
[406846533,1772226089575,-204.82053742,0.00015557,2]
[406846534,1772226089590,-152.29520724,0.00015557,2]
[406846573,1772226631600,-632.0,0.00014764,2]
[406846575,1772226631610,-176.70919001,0.00014764,2]
[406846577,1772226631619,-156.0,0.00014764,2]
[406846579,1772226631629,-166.66666668,0.00014864,2]
[406846581,1772226631638,-744.82189483,0.00015544,2]
[406846583,1772226631648,-258.07880485,0.00015557,2]
[406846585,1772226631658,-833.28961962,0.00015565,2]
[406846587,1772226631667,-200.0,0.00015568,3]
[406846589,1772226631677,-166.66666666,0.00016332,2]
[406846591,1772226631686,-1000.0,0.00016608,5]
[406846593,1772226631695,-208.51684422,0.00016764,2]
[406846595,1772226631704,-1200.0,0.00016938,2]
[406846597,1772226631713,-4683.32422967,0.00016939,2]
[406846599,1772226631724,-70.42806353,0.00016939,2]
[406846601,1772226631734,-296.39995971,0.00016939,2]
[406846648,1772226637723,-935.94324942,0.00016939,2]
[406846650,1772226637732,-300.0,0.00017639,2]
[406846652,1772226637742,-300.0,0.00017639,2]
[406846654,1772226637752,-300.0,0.00017639,2]
[406846656,1772226637761,-300.0,0.00017639,2]
[406846658,1772226637771,-7.29326832,0.0001764,2]
[406846875,1772226639988,-180.84849752,0.0001764,2]
[406846877,1772226639997,-300.0,0.00017798,2]
[406846879,1772226640007,-166.66666666,0.00017799,2]
[406846881,1772226640016,-820.23949016,0.00017799,2]
[406846883,1772226640028,-2309.95076757,0.00017799,2]
[406846885,1772226640037,-150.0,0.00017808,2]
[406846887,1772226640047,-400.0,0.0001789,2]
[406846889,1772226640056,-90.57182711,0.0001789,2]
[406846893,1772226640082,-80.76917289,0.0001789,2]
[406846895,1772226640091,-1120.64943656,0.000179,2]
[406847102,1772226642988,-806.99127554,0.0001677,2]
[406847103,1772226643004,-1045.28565446,0.0001677,2]
[406847104,1772226643018,-5756.68001331,0.000179,2]
[406847105,1772226643050,-1735.69850148,0.000179,2]
[406847106,1772226643064,-500.0,0.00017999,2]
[406847107,1772226643079,-500.0,0.00017999,2]
[406847108,1772226643093,-500.0,0.00017999,2]
[406847109,1772226643108,-500.0,0.00017999,2]
[406847110,1772226643122,-500.0,0.00017999,2]
[406847111,1772226643137,-500.0,0.00017999,2]
[406847112,1772226643152,-362.81173028,0.00017999,2]
[406847113,1772226643170,-137.18826972,0.00017999,2]
[406847114,1772226643186,-500.0,0.00017999,2]
[406847115,1772226643201,-500.0,0.00017999,2]
[406847116,1772226643214,-500.0,0.00017999,2]
[406847117,1772226643229,-500.0,0.00017999,2]
[406847118,1772226643245,-500.0,0.00017999,2]
[406847119,1772226643258,-500.0,0.00017999,2]
[406847121,1772226643273,-500.0,0.00017999,2]
[406847122,1772226643288,-500.0,0.00017999,2]
[406847123,1772226643302,-367.15181292,0.00017999,2]
[406847124,1772226643316,-500.0,0.00017999,2]
[406847125,1772226643330,-500.0,0.00017999,2]
[406847126,1772226643344,-500.0,0.00017999,2]
[406847127,1772226643358,-500.0,0.00017999,2]
[406847128,1772226643372,-500.0,0.00017999,2]
[406847129,1772226643388,-500.0,0.00017999,2]
[406847130,1772226643401,-500.0,0.00017999,2]
[406847131,1772226643416,-500.0,0.00017999,2]
[406847132,1772226643430,-500.0,0.00017999,2]
[406847133,1772226643445,-500.0,0.00017999,2]
[406847134,1772226643459,-500.0,0.00017999,2]
[406847135,1772226643473,-500.0,0.00017999,2]
[406847136,1772226643488,-500.0,0.00017999,2]
[406847137,1772226643504,-500.0,0.00017999,2]
[406847138,1772226643518,-500.0,0.00017999,2]
[406847139,1772226643532,-500.0,0.00017999,2]
[406847140,1772226643547,-500.0,0.00017999,2]
[406847141,1772226643561,-485.29294289,0.00017999,2]
[406847142,1772226643576,-500.0,0.00017999,2]
[406847143,1772226643591,-500.0,0.00017999,2]
[406847144,1772226643605,-500.0,0.00017999,2]
[406847145,1772226643619,-500.0,0.00017999,2]
[406847146,1772226643634,-500.0,0.00017999,2]
[406847147,1772226643648,-500.0,0.00017999,2]
[406847148,1772226643663,-500.0,0.00017999,2]
[406847149,1772226643677,-500.0,0.00017999,2]
[406847150,1772226643692,-500.0,0.00017999,2]
[406847151,1772226643708,-500.0,0.00017999,2]
[406847152,1772226643720,-500.0,0.00017999,2]
[406847153,1772226643730,-500.0,0.00017999,2]
[406847154,1772226643742,-500.0,0.00017999,2]
[406847155,1772226643752,-500.0,0.00017999,2]
[406847156,1772226643762,-500.0,0.00017999,2]
[406847157,1772226643772,-500.0,0.00017999,2]
[406847158,1772226643781,-500.0,0.00017999,2]
[406847159,1772226643791,-500.0,0.00017999,2]
[406847160,1772226643801,-500.0,0.00017999,2]
[406847161,1772226643814,-500.0,0.00017999,2]
[406847162,1772226643825,-500.0,0.00017999,2]
[406847163,1772226643834,-226.13224333,0.00017999,2]
[406847164,1772226644157,-500.0,0.00017999,2]
[406847165,1772226644193,-500.0,0.00017999,2]
[406847166,1772226644205,-500.0,0.00017999,2]
[406847167,1772226644216,-500.0,0.00017999,2]
[406847168,1772226644227,-500.0,0.00017999,2]
[406847169,1772226644237,-500.0,0.00017999,2]
[406847170,1772226644247,-500.0,0.00017999,2]
[406847171,1772226644256,-500.0,0.00017999,2]
[406847172,1772226644265,-500.0,0.00017999,2]
[406847173,1772226644275,-500.0,0.00017999,2]
[406847174,1772226644284,-500.0,0.00017999,2]
[406847175,1772226644293,-464.47222457,0.00017999,2]
[406847176,1772226644302,-499.99999999,0.00017999,2]
[406847177,1772226644311,-500.0,0.00017999,2]
[406847178,1772226644321,-500.0,0.00017999,2]
[406847179,1772226644330,-628.23907868,0.00017999,2]
[406847180,1772226644340,-500.0,0.00017999,2]
[406847181,1772226644348,-500.0,0.00017999,2]
[406847182,1772226644358,-500.0,0.00017999,2]
[406847183,1772226644367,-500.0,0.00017999,2]
[406847184,1772226644376,-500.0,0.00017999,2]
[406847185,1772226644386,-500.0,0.00017999,2]
[406847186,1772226644396,-500.0,0.00017999,2]
[406847187,1772226644405,-500.0,0.00017999,2]
[406847188,1772226644414,-500.0,0.00017999,2]
[406847189,1772226644424,-500.0,0.00017999,2]
[406847190,1772226644433,-303.27873892,0.00017999,2]
[406847191,1772226644443,-124.56258309,0.00017999,2]
[406847207,1772226645694,-253.7425319,0.0001782,2]
[406847208,1772226645706,-2013.84284979,0.0001782,2]
[406847209,1772226645716,-375.43741691,0.00017999,2]
[406847210,1772226645725,-500.0,0.00017999,2]
[406847211,1772226645735,-500.0,0.00017999,2]
[406847212,1772226645744,-500.0,0.00017999,2]
[406847213,1772226645755,-500.0,0.00017999,2]
[406847214,1772226645765,-500.0,0.00017999,2]
[406847215,1772226645774,-9245.7197333,0.00018,2]
[406847216,1772226645874,-6508.90368979,0.00018,2]
[406847217,1772226645885,-2088.0,0.00018,2]
[406847261,1772227592092,-298.42025008,0.00013562,2]
[406847391,1772227831674,-169.00466933,0.0001363,2]
[406847393,1772227831684,-313.82904036,0.00013699,2]
[406847395,1772227831693,-200.0,0.00013913,2]
[406847397,1772227831703,-183.06104395,0.00015409,2]
[406847399,1772227831712,-199.42550981,0.0001563,2]
[406847401,1772227831721,-229.84635029,0.0001763,2]
[406847403,1772227831730,-635.36361406,0.00017777,2]
[406847869,1772227837856,-109.45828077,0.00017777,2]
[406847870,1772227837865,-150.0,0.00017808,2]
[406847871,1772227837875,-300.0,0.00017899,2]
[406847872,1772227837884,-7751.72515626,0.000179,2]
[406847873,1772227837894,-165.8731351,0.000179,2]
[406847874,1772227837903,-151.032,0.00017999,2]
[406847875,1772227837912,-500.0,0.00017999,2]
[406847876,1772227837920,-500.0,0.00017999,2]
[406847877,1772227837929,-263.0168681,0.00017999,2]
[406847878,1772227837938,-500.0,0.00017999,2]
[406847879,1772227837947,-165.03254921,0.00017999,2]
[406847880,1772227837958,-3697.58563963,0.00018,2]
[406848352,1772227843039,-2029.20787857,0.00018,2]
[406848355,1772227843051,-849.78408493,0.00018,2]
[406848357,1772227843063,-1119.46594996,0.00018,2]
[406848359,1772227843074,-359.66901507,0.00018,2]
[406848361,1772227843085,-7637.29326398,0.00018,2]
[406848416,1772227846667,-512.34104237,0.00018,2]
[406848417,1772227846678,-8021.53999746,0.00018,2]
[406848418,1772227846693,-27068.67334768,0.00018,2]
[406848649,1772229031930,-500.0,0.00013699,2]
[406848651,1772229031940,-169.65658357,0.00013699,2]
[406848653,1772229031950,-615.0,0.00013699,2]
[406848656,1772229031959,-200.0,0.00013942,2]
[406848658,1772229031968,-151.62002564,0.00014106,2]
[406848661,1772229031978,-688.49863669,0.00014175,3]
[406848665,1772229031987,-500.0,0.00014247,2]
[406848668,1772229031997,-200.19476861,0.00015699,2]
[406848670,1772229032006,-242.0839,0.00015826,2]
[406848671,1772229032015,-744.82189483,0.00017614,2]
[406848673,1772229032025,-1162.07571166,0.0001766,3]
[406848674,1772229032035,-230.73295365,0.00017699,2]
[406848675,1772229032044,-165.2124115,0.0001772,2]
[406848676,1772229032054,-150.0,0.00017808,2]
[406848677,1772229032063,-2425.98152274,0.0001782,2]
[406848678,1772229032073,-300.0,0.00017861,2]
[406848679,1772229032082,-2132.05255046,0.00017862,3]
[406848680,1772229032092,-3298.60104619,0.000179,2]
[406848681,1772229032103,-3677.95159439,0.000179,2]
[406848682,1772229032113,-1334.7172274,0.00017927,2]
[406848683,1772229032122,-2556.1249612,0.00017927,2]
[406848684,1772229032132,-185.59839635,0.00017989,2]
[406848685,1772229032142,-250.0,0.00017989,2]
[406848686,1772229032151,-155.99127554,0.00017989,2]
[406848687,1772229032160,-120.88272911,0.00017989,2]
[406848703,1772229038089,-129.11727089,0.00017989,2]
[406848704,1772229038102,-533.88981491,0.00017989,2]
[406848705,1772229038111,-151.0,0.00017989,2]
[406848706,1772229038122,-500.0,0.00017999,2]
[406848707,1772229038131,-388.01485709,0.00017999,2]
[406848708,1772229038140,-7130.52738294,0.00018,2]
[406848709,1772229038168,-1920.472502,0.00018,2]
[406848722,1772229043270,-806.99127554,0.00018,2]
[406848724,1772229046230,-2837.32128554,0.00018,2]
[406848725,1772229046241,-7827.29306288,0.00018,2]
[406848726,1772229046252,-80676.38551401,0.00018,2]
[406848789,1772230232065,-297.39539629,0.00013273,2]
[406848791,1772230232075,-500.0,0.00013273,2]
[406848793,1772230232084,-500.0,0.00013273,2]
[406848795,1772230232093,-168.36014724,0.00013273,2]
[406848797,1772230232103,-608.0,0.00013273,2]
[406848799,1772230232112,-200.0,0.00013522,2]
[406848801,1772230232121,-252.52,0.000137,2]
[406848803,1772230232131,-722.86454921,0.00014175,3]
[406848805,1772230232140,-744.82189483,0.00015002,2]
[406848806,1772230232149,-198.66497374,0.00015273,2]
[406848808,1772230232159,-1363.524804,0.00016483,2]
[406848810,1772230232169,-251.20929609,0.00017,2]
[406848812,1772230232178,-228.96980024,0.00017273,2]
[406848814,1772230232188,-150.0,0.00017808,2]
[406848816,1772230232197,-300.0,0.00017899,2]
[406848818,1772230232206,-6278.89737654,0.000179,2]
[406848820,1772230232216,-988.0784959,0.00017916,2]
[406848822,1772230232225,-500.0,0.00017989,2]
[406848824,1772230232235,-553.74266684,0.00017989,2]
[406848826,1772230232244,-500.0,0.00017999,2]
[406848828,1772230232253,-422.58652655,0.00017999,2]
[406848830,1772230232263,-500.0,0.00017999,2]
[406848832,1772230232273,-500.0,0.00017999,2]
[406848834,1772230232282,-352.62159,0.00017999,2]